[Event "Titled Tuesday Blitz December 14 2021"]
[White "Pesotskiy, Mikhail"]
[Black "Orlov, Georgi"]
[WhiteFideId "34164453"]
[BlackFideId "2011271"]
[WhiteElo "2010"]
[BlackElo "2456"]
[Result "0-1"]
[Round "06"]
[TimeControl "180+1"]
[Date "2021.12.15"]
[WhiteClock "0:00:12"]
[BlackClock "0:00:06"]

1. c4 {[%clk 0:03:00]}  Nf6 {[%clk 0:02:58]} 2. g3 {[%clk 0:02:58]}  Nc6 {[%clk 0:02:58]} 3. Bg2 {[%clk 0:02:59]}  e5 {[%clk 0:02:58]} 4. Nc3 {[%clk 0:02:59]}  Bb4 {[%clk 0:02:57]} 5. e3 {[%clk 0:02:59]}  Bxc3 {[%clk 0:02:57]} 6. bxc3 {[%clk 0:03:00]}  e4 {[%clk 0:02:55]} 7. f3 {[%clk 0:02:55]}  Qe7 {[%clk 0:02:28]} 8. fxe4 {[%clk 0:02:51]}  Nxe4 {[%clk 0:02:27]} 9. d3 {[%clk 0:02:49]}  Nc5 {[%clk 0:02:22]} 10. Nf3 {[%clk 0:02:40]}  d6 {[%clk 0:02:21]} 11. O-O {[%clk 0:02:40]}  Bg4 {[%clk 0:02:17]} 12. h3 {[%clk 0:02:34]}  Bh5 {[%clk 0:02:16]} 13. e4 {[%clk 0:02:32]}  O-O {[%clk 0:02:06]} 14. Be3 {[%clk 0:02:23]}  Rad8 {[%clk 0:01:59]} 15. Qc2 {[%clk 0:02:09]}  Bxf3 {[%clk 0:01:35]} 16. Bxf3 {[%clk 0:02:08]}  Ne5 {[%clk 0:01:36]} 17. Be2 {[%clk 0:02:08]}  Nc6 {[%clk 0:01:16]} 18. Qd2 {[%clk 0:01:50]}  Rde8 {[%clk 0:01:07]} 19. Bg4 {[%clk 0:01:45]}  Ne5 {[%clk 0:01:05]} 20. Be2 {[%clk 0:01:43]}  Qe6 {[%clk 0:01:02]} 21. Kh2 {[%clk 0:01:42]}  Nc6 {[%clk 0:00:54]} 22. Bg4 {[%clk 0:01:40]}  Qe7 {[%clk 0:00:54]} 23. Bd4 {[%clk 0:01:33]}  Ne5 {[%clk 0:00:53]} 24. Be2 {[%clk 0:01:31]}  f5 {[%clk 0:00:49]} 25. Bxc5 {[%clk 0:00:26]}  dxc5 {[%clk 0:00:49]} 26. Qe3 {[%clk 0:00:10]}  Ng6 {[%clk 0:00:40]} 27. Bf3 {[%clk 0:00:08]}  f4 {[%clk 0:00:40]} 28. gxf4 {[%clk 0:00:09]}  Nxf4 {[%clk 0:00:39]} 29. Bg2 {[%clk 0:00:09]}  Qd6 {[%clk 0:00:37]} 30. Qg3 {[%clk 0:00:09]}  Nxd3 {[%clk 0:00:31]} 31. Qxd6 {[%clk 0:00:09]}  cxd6 {[%clk 0:00:31]} 32. Rxf8+ {[%clk 0:00:10]}  Rxf8 {[%clk 0:00:30]} 33. Rd1 {[%clk 0:00:11]}  Ne5 {[%clk 0:00:26]} 34. Rxd6 {[%clk 0:00:11]}  b6 {[%clk 0:00:19]} 35. a4 {[%clk 0:00:08]}  Rf6 {[%clk 0:00:17]} 36. Rd8+ {[%clk 0:00:08]}  Rf8 {[%clk 0:00:17]} 37. Rd6 {[%clk 0:00:08]}  Kf7 {[%clk 0:00:17]} 38. a5 {[%clk 0:00:07]}  Ke7 {[%clk 0:00:17]} 39. Rd5 {[%clk 0:00:08]}  Nc6 {[%clk 0:00:15]} 40. axb6 {[%clk 0:00:09]}  axb6 {[%clk 0:00:15]} 41. e5 {[%clk 0:00:09]}  Rf5 {[%clk 0:00:13]} 42. Rd6 {[%clk 0:00:10]}  Nxe5 {[%clk 0:00:13]} 43. Rxb6 {[%clk 0:00:10]}  Nxc4 {[%clk 0:00:13]} 44. Rb7+ {[%clk 0:00:11]}  Kf6 {[%clk 0:00:13]} 45. Rc7 {[%clk 0:00:11]}  Ne3 {[%clk 0:00:13]} 46. Be4 {[%clk 0:00:12]}  Re5 {[%clk 0:00:12]} 47. Bxh7 {[%clk 0:00:12]}  Rd5 {[%clk 0:00:09]} 48. Bg8 {[%clk 0:00:12]}  Rd3 {[%clk 0:00:08]} 49. c4 {[%clk 0:00:12]}  Rc3 {[%clk 0:00:08]} 50. Rxc5 {[%clk 0:00:12]}  Nf5 {[%clk 0:00:06]} 51. Bd5 {[%clk 0:00:12]}  Rc2+ {[%clk 0:00:06]} 52. Kg1 {[%clk 0:00:12]}  Ne3 {[%clk 0:00:06]} 53. Rc6+ {[%clk 0:00:13]}  Kf5 {[%clk 0:00:05]} 54. Rc8 {[%clk 0:00:12]}  Kf4 {[%clk 0:00:05]} 55. Rf8+ {[%clk 0:00:09]}  Ke5 {[%clk 0:00:05]} 56. Rg8 {[%clk 0:00:08]}  Kf6 {[%clk 0:00:05]} 57. Rf8+ {[%clk 0:00:08]}  Ke5 {[%clk 0:00:05]} 58. Rf7 {[%clk 0:00:08]}  g5 {[%clk 0:00:05]} 59. Rf3 {[%clk 0:00:08]}  Nxd5 {[%clk 0:00:05]} 60. cxd5 {[%clk 0:00:09]}  Kxd5 {[%clk 0:00:05]} 61. Rf5+ {[%clk 0:00:09]}  Ke4 {[%clk 0:00:06]} 62. Rxg5 {[%clk 0:00:10]}  Kf4 {[%clk 0:00:06]} 63. Rg4+ {[%clk 0:00:11]}  Kf3 {[%clk 0:00:06]} 64. Rg2 {[%clk 0:00:11]}  Rxg2+ {[%clk 0:00:05]} 65. Kf1 {[%clk 0:00:12]}  Kg3 {[%clk 0:00:06]} 0-1


[Site "https://www.chess.com"]

[Event "Titled Tuesday Blitz December 14 2021"]
[White "Piesik, Piotr"]
[Black "Paravyan, David"]
[WhiteFideId "1136194"]
[BlackFideId "4194985"]
[WhiteElo "2336"]
[BlackElo "2656"]
[Result "0-1"]
[Round "06"]
[TimeControl "180+1"]
[Date "2021.12.14"]
[WhiteClock "0:00:17"]
[BlackClock "0:01:08"]

1. Nf3 {[%clk 0:03:00]}  c5 {[%clk 0:02:58]} 2. g3 {[%clk 0:03:01]}  g6 {[%clk 0:02:56]} 3. Bg2 {[%clk 0:03:01]}  Bg7 {[%clk 0:02:57]} 4. O-O {[%clk 0:03:01]}  Nf6 {[%clk 0:02:56]} 5. c3 {[%clk 0:03:00]}  O-O {[%clk 0:02:55]} 6. d4 {[%clk 0:03:01]}  cxd4 {[%clk 0:02:55]} 7. cxd4 {[%clk 0:03:02]}  d5 {[%clk 0:02:56]} 8. Nc3 {[%clk 0:03:01]}  Nc6 {[%clk 0:02:55]} 9. Ne5 {[%clk 0:03:01]}  Bf5 {[%clk 0:02:55]} 10. Nxc6 {[%clk 0:03:01]}  bxc6 {[%clk 0:02:56]} 11. b3 {[%clk 0:03:01]}  h5 {[%clk 0:02:55]} 12. Na4 {[%clk 0:03:00]}  h4 {[%clk 0:02:54]} 13. Ba3 {[%clk 0:02:57]}  h3 {[%clk 0:02:53]} 14. Bf3 {[%clk 0:02:56]}  Ne4 {[%clk 0:02:54]} 15. Rc1 {[%clk 0:02:54]}  Rc8 {[%clk 0:02:49]} 16. Bc5 {[%clk 0:02:49]}  Bh6 {[%clk 0:02:44]} 17. e3 {[%clk 0:02:47]}  Qd7 {[%clk 0:02:43]} 18. Nc3 {[%clk 0:02:28]}  Ng5 {[%clk 0:02:38]} 19. Be2 {[%clk 0:02:27]}  Rfe8 {[%clk 0:02:36]} 20. Qd2 {[%clk 0:02:14]}  Qe6 {[%clk 0:02:31]} 21. Bxa7 {[%clk 0:02:10]}  Bg4 {[%clk 0:02:30]} 22. Bxg4 {[%clk 0:01:50]}  Qxg4 {[%clk 0:02:30]} 23. Qe2 {[%clk 0:01:51]}  Qxe2 {[%clk 0:02:27]} 24. Nxe2 {[%clk 0:01:50]}  Nf3+ {[%clk 0:02:28]} 25. Kh1 {[%clk 0:01:51]}  Ra8 {[%clk 0:02:29]} 26. Bb6 {[%clk 0:01:45]}  Rxa2 {[%clk 0:02:29]} 27. Nc3 {[%clk 0:01:45]}  Rd2 {[%clk 0:02:23]} 28. Na4 {[%clk 0:01:43]}  Rb8 {[%clk 0:02:01]} 29. Rcd1 {[%clk 0:01:40]}  Re2 {[%clk 0:01:59]} 30. Rd3 {[%clk 0:01:35]}  f5 {[%clk 0:01:39]} 31. g4 {[%clk 0:01:30]}  fxg4 {[%clk 0:01:38]} 32. Bc7 {[%clk 0:01:28]}  Rb5 {[%clk 0:01:30]} 33. Bg3 {[%clk 0:01:25]}  Rc2 {[%clk 0:01:23]} 34. Rfd1 {[%clk 0:01:10]}  Kf7 {[%clk 0:01:22]} 35. Nc5 {[%clk 0:00:53]}  e5 {[%clk 0:01:21]} 36. Na4 {[%clk 0:00:46]}  e4 {[%clk 0:01:20]} 37. Rc3 {[%clk 0:00:46]}  Rxc3 {[%clk 0:01:20]} 38. Nxc3 {[%clk 0:00:47]}  Rxb3 {[%clk 0:01:20]} 39. Rc1 {[%clk 0:00:44]}  Bf8 {[%clk 0:01:18]} 40. Ne2 {[%clk 0:00:39]}  Ba3 {[%clk 0:01:17]} 41. Ra1 {[%clk 0:00:33]}  g5 {[%clk 0:01:17]} 42. Ng1 {[%clk 0:00:33]}  Ke6 {[%clk 0:01:16]} 43. Nxf3 {[%clk 0:00:32]}  exf3 {[%clk 0:01:11]} 44. Kg1 {[%clk 0:00:27]}  Kf5 {[%clk 0:01:11]} 45. Kf1 {[%clk 0:00:27]}  Ke4 {[%clk 0:01:11]} 46. Ke1 {[%clk 0:00:27]}  Kd3 {[%clk 0:01:12]} 47. Rd1+ {[%clk 0:00:26]}  Kc4 {[%clk 0:01:10]} 48. Ra1 {[%clk 0:00:22]}  Bb4+ {[%clk 0:01:10]} 49. Kd1 {[%clk 0:00:20]}  Kd3 {[%clk 0:01:10]} 50. Rc1 {[%clk 0:00:18]}  Bd2 {[%clk 0:01:08]} 51. Ra1 {[%clk 0:00:18]}  Bc3 {[%clk 0:01:08]} 52. Rc1 {[%clk 0:00:17]}  Rb2 {[%clk 0:01:08]} 0-1


[Site "https://www.chess.com"]

[Event "Titled Tuesday Blitz December 14 2021"]
[White "Samunenkov, Ihor"]
[Black "Andreikin, Dmitry"]
[WhiteFideId "14187086"]
[BlackFideId "4158814"]
[WhiteElo "2348"]
[BlackElo "2736"]
[Result "0-1"]
[Round "06"]
[TimeControl "180+1"]
[Date "2021.12.14"]
[WhiteClock "0:00:03"]
[BlackClock "0:00:06"]

1. d4 {[%clk 0:03:00]}  Nf6 {[%clk 0:02:59]} 2. g3 {[%clk 0:03:01]}  d5 {[%clk 0:02:54]} 3. Nf3 {[%clk 0:03:01]}  c6 {[%clk 0:02:54]} 4. c4 {[%clk 0:03:01]}  b5 {[%clk 0:02:50]} 5. cxb5 {[%clk 0:02:57]}  cxb5 {[%clk 0:02:50]} 6. Bg2 {[%clk 0:02:55]}  Bb7 {[%clk 0:02:48]} 7. O-O {[%clk 0:02:54]}  e6 {[%clk 0:02:47]} 8. Bf4 {[%clk 0:02:53]}  Nbd7 {[%clk 0:02:43]} 9. Nbd2 {[%clk 0:02:38]}  Be7 {[%clk 0:02:38]} 10. Rc1 {[%clk 0:02:38]}  Qb6 {[%clk 0:02:31]} 11. Qb3 {[%clk 0:02:06]}  O-O {[%clk 0:02:29]} 12. Rc7 {[%clk 0:02:05]}  Rfc8 {[%clk 0:02:16]} 13. Rfc1 {[%clk 0:02:04]}  Rxc7 {[%clk 0:02:11]} 14. Rxc7 {[%clk 0:02:01]}  Rc8 {[%clk 0:02:10]} 15. Rxc8+ {[%clk 0:01:54]}  Bxc8 {[%clk 0:02:11]} 16. Qc2 {[%clk 0:01:54]}  Ba6 {[%clk 0:02:07]} 17. Nb3 {[%clk 0:01:52]}  b4 {[%clk 0:02:02]} 18. Ne5 {[%clk 0:01:43]}  h6 {[%clk 0:01:47]} 19. h4 {[%clk 0:01:37]}  Nxe5 {[%clk 0:01:38]} 20. Bxe5 {[%clk 0:01:38]}  Ng4 {[%clk 0:01:29]} 21. Bc7 {[%clk 0:01:32]}  Qb5 {[%clk 0:01:29]} 22. Bf3 {[%clk 0:01:32]}  h5 {[%clk 0:01:29]} 23. Nc5 {[%clk 0:01:28]}  Bf6 {[%clk 0:01:12]} 24. Qd2 {[%clk 0:01:05]}  Bc8 {[%clk 0:00:38]} 25. e3 {[%clk 0:01:04]}  Be7 {[%clk 0:00:32]} 26. Qc2 {[%clk 0:00:59]}  Nf6 {[%clk 0:00:24]} 27. Be2 {[%clk 0:00:56]}  Qc6 {[%clk 0:00:21]} 28. Ba5 {[%clk 0:00:56]}  e5 {[%clk 0:00:20]} 29. Bxb4 {[%clk 0:00:56]}  e4 {[%clk 0:00:17]} 30. Qa4 {[%clk 0:00:42]}  Qxa4 {[%clk 0:00:17]} 31. Nxa4 {[%clk 0:00:42]}  Bxb4 {[%clk 0:00:17]} 32. a3 {[%clk 0:00:39]}  Bd6 {[%clk 0:00:14]} 33. Kf1 {[%clk 0:00:36]}  Kf8 {[%clk 0:00:14]} 34. Ke1 {[%clk 0:00:35]}  Ke7 {[%clk 0:00:14]} 35. b4 {[%clk 0:00:36]}  g6 {[%clk 0:00:13]} 36. Nc3 {[%clk 0:00:35]}  Bb7 {[%clk 0:00:12]} 37. Bd1 {[%clk 0:00:35]}  Nd7 {[%clk 0:00:12]} 38. Bb3 {[%clk 0:00:35]}  Nb6 {[%clk 0:00:12]} 39. Ke2 {[%clk 0:00:35]}  f6 {[%clk 0:00:11]} 40. Kd1 {[%clk 0:00:24]}  g5 {[%clk 0:00:11]} 41. Ke2 {[%clk 0:00:22]}  gxh4 {[%clk 0:00:11]} 42. gxh4 {[%clk 0:00:23]}  f5 {[%clk 0:00:11]} 43. f4 {[%clk 0:00:17]}  Ke6 {[%clk 0:00:10]} 44. Na2 {[%clk 0:00:06]}  Be7 {[%clk 0:00:09]} 45. Nc3 {[%clk 0:00:05]}  Bxh4 {[%clk 0:00:08]} 46. Nb5 {[%clk 0:00:06]}  a6 {[%clk 0:00:07]} 47. Nc7+ {[%clk 0:00:06]}  Kd7 {[%clk 0:00:07]} 48. a4 {[%clk 0:00:02]}  Kxc7 {[%clk 0:00:06]} 49. a5 {[%clk 0:00:02]}  Nc8 {[%clk 0:00:06]} 50. Ba4 {[%clk 0:00:03]}  Nd6 {[%clk 0:00:06]} 0-1


[Site "https://www.chess.com"]

[Event "Titled Tuesday Blitz December 14 2021"]
[White "Sanal, Vahap"]
[Black "Jakubowski, Krzysztof"]
[WhiteFideId "6300545"]
[BlackFideId "1112848"]
[WhiteElo "2499"]
[BlackElo "2373"]
[Result "0-1"]
[Round "06"]
[TimeControl "180+1"]
[Date "2021.12.15"]
[WhiteClock "0:00:23"]
[BlackClock "0:00:04"]

1. e4 {[%clk 0:02:59]}  c5 {[%clk 0:02:58]} 2. Nf3 {[%clk 0:02:59]}  e6 {[%clk 0:02:58]} 3. d4 {[%clk 0:02:59]}  cxd4 {[%clk 0:02:59]} 4. Nxd4 {[%clk 0:02:59]}  Nc6 {[%clk 0:02:59]} 5. Nc3 {[%clk 0:03:00]}  Qc7 {[%clk 0:02:58]} 6. g3 {[%clk 0:02:57]}  a6 {[%clk 0:02:55]} 7. Bg2 {[%clk 0:02:57]}  d6 {[%clk 0:02:54]} 8. O-O {[%clk 0:02:56]}  Bd7 {[%clk 0:02:54]} 9. Nb3 {[%clk 0:02:54]}  b5 {[%clk 0:02:45]} 10. a3 {[%clk 0:02:52]}  Nf6 {[%clk 0:02:42]} 11. f4 {[%clk 0:02:47]}  Rb8 {[%clk 0:02:29]} 12. g4 {[%clk 0:02:47]}  g6 {[%clk 0:02:22]} 13. g5 {[%clk 0:02:42]}  Nh5 {[%clk 0:02:21]} 14. Be3 {[%clk 0:02:41]}  Bg7 {[%clk 0:02:14]} 15. f5 {[%clk 0:02:41]}  Bxc3 {[%clk 0:01:44]} 16. bxc3 {[%clk 0:02:40]}  Ne5 {[%clk 0:01:43]} 17. Bd4 {[%clk 0:02:38]}  O-O {[%clk 0:01:37]} 18. f6 {[%clk 0:02:28]}  Rfd8 {[%clk 0:01:24]} 19. Qe1 {[%clk 0:02:26]}  Nc6 {[%clk 0:01:14]} 20. Bf3 {[%clk 0:02:25]}  Nxd4 {[%clk 0:01:13]} 21. Nxd4 {[%clk 0:02:20]}  e5 {[%clk 0:01:13]} 22. Ne2 {[%clk 0:02:18]}  Nf4 {[%clk 0:01:10]} 23. Nxf4 {[%clk 0:02:16]}  exf4 {[%clk 0:01:11]} 24. Qh4 {[%clk 0:02:16]}  Kh8 {[%clk 0:01:00]} 25. Qh6 {[%clk 0:02:15]}  Rg8 {[%clk 0:00:59]} 26. Rad1 {[%clk 0:02:08]}  Qxc3 {[%clk 0:00:50]} 27. Bg2 {[%clk 0:02:04]}  Bg4 {[%clk 0:00:32]} 28. Rde1 {[%clk 0:01:03]}  f3 {[%clk 0:00:26]} 29. Bh1 {[%clk 0:01:00]}  Bh5 {[%clk 0:00:21]} 30. Rd1 {[%clk 0:00:54]}  Rbe8 {[%clk 0:00:20]} 31. Rd3 {[%clk 0:00:44]}  Qc5+ {[%clk 0:00:17]} 32. Rf2 {[%clk 0:00:45]}  Rxe4 {[%clk 0:00:16]} 33. Bxf3 {[%clk 0:00:45]}  Re5 {[%clk 0:00:10]} 34. h4 {[%clk 0:00:35]}  Bxf3 {[%clk 0:00:07]} 35. Rxf3 {[%clk 0:00:36]}  Qd5 {[%clk 0:00:05]} 36. Kg2 {[%clk 0:00:31]}  Re4 {[%clk 0:00:04]} 37. Kh3 {[%clk 0:00:28]}  Qe6+ {[%clk 0:00:04]} 38. Kh2 {[%clk 0:00:28]}  Qe5+ {[%clk 0:00:04]} 39. Kg2 {[%clk 0:00:28]}  Rg4+ {[%clk 0:00:04]} 40. Kh3 {[%clk 0:00:28]}  Rc4 {[%clk 0:00:03]} 41. h5 {[%clk 0:00:26]}  Qe6+ {[%clk 0:00:03]} 42. Kh2 {[%clk 0:00:25]}  Rh4+ {[%clk 0:00:03]} 43. Kg2 {[%clk 0:00:25]}  Rxh5 {[%clk 0:00:03]} 44. Qxh5 {[%clk 0:00:20]}  gxh5 {[%clk 0:00:04]} 45. Rg3 {[%clk 0:00:20]}  Qd5+ {[%clk 0:00:04]} 46. Kh2 {[%clk 0:00:21]}  h6 {[%clk 0:00:05]} 47. Re3 {[%clk 0:00:21]}  Rxg5 {[%clk 0:00:04]} 48. Rfe2 {[%clk 0:00:22]}  Qf5 {[%clk 0:00:04]} 49. Re8+ {[%clk 0:00:22]}  Kh7 {[%clk 0:00:04]} 50. Rf8 {[%clk 0:00:23]}  Qxf6 {[%clk 0:00:04]} 51. Rg2 {[%clk 0:00:23]}  Qf4+ {[%clk 0:00:04]} 52. Kh1 {[%clk 0:00:23]}  Qf1+ {[%clk 0:00:04]} 53. Kh2 {[%clk 0:00:23]}  Qxg2# {[%clk 0:00:04]} 0-1


[Site "https://www.chess.com"]

[Event "Titled Tuesday Blitz December 14 2021"]
[White "Shimelkov, Vasiliy"]
[Black "Le Goff, Ronan"]
[WhiteFideId "13701630"]
[BlackFideId "612073"]
[WhiteElo "2073"]
[BlackElo "2276"]
[Result "0-1"]
[Round "06"]
[TimeControl "180+1"]
[Date "2021.12.15"]
[WhiteClock "0:00:07"]
[BlackClock "0:00:06"]

1. d4 {[%clk 0:03:00]}  d5 {[%clk 0:02:47]} 2. Nf3 {[%clk 0:03:00]}  Nf6 {[%clk 0:02:46]} 3. c4 {[%clk 0:03:00]}  c6 {[%clk 0:02:32]} 4. Nc3 {[%clk 0:02:59]}  e6 {[%clk 0:02:31]} 5. Bg5 {[%clk 0:02:58]}  Nbd7 {[%clk 0:02:18]} 6. e3 {[%clk 0:02:58]}  Qa5 {[%clk 0:02:05]} 7. Nd2 {[%clk 0:02:57]}  Bb4 {[%clk 0:01:52]} 8. Qc2 {[%clk 0:02:56]}  dxc4 {[%clk 0:01:46]} 9. Bxf6 {[%clk 0:02:55]}  Nxf6 {[%clk 0:01:43]} 10. Nxc4 {[%clk 0:02:55]}  Qg5 {[%clk 0:01:40]} 11. Ne5 {[%clk 0:02:44]}  O-O {[%clk 0:01:34]} 12. h4 {[%clk 0:02:39]}  Qh6 {[%clk 0:01:27]} 13. g4 {[%clk 0:02:32]}  g5 {[%clk 0:01:07]} 14. f4 {[%clk 0:02:14]}  Nd5 {[%clk 0:01:01]} 15. fxg5 {[%clk 0:02:08]}  Qg7 {[%clk 0:00:57]} 16. e4 {[%clk 0:01:54]}  c5 {[%clk 0:00:54]} 17. exd5 {[%clk 0:01:33]}  cxd4 {[%clk 0:00:52]} 18. Nd3 {[%clk 0:01:33]}  dxc3 {[%clk 0:00:47]} 19. Nxb4 {[%clk 0:01:29]}  cxb2 {[%clk 0:00:45]} 20. Rb1 {[%clk 0:01:28]}  exd5 {[%clk 0:00:41]} 21. Rxb2 {[%clk 0:01:18]}  Re8+ {[%clk 0:00:39]} 22. Be2 {[%clk 0:01:17]}  Bxg4 {[%clk 0:00:38]} 23. Nxd5 {[%clk 0:00:54]}  Bxe2 {[%clk 0:00:19]} 24. Nf6+ {[%clk 0:00:49]}  Qxf6 {[%clk 0:00:16]} 25. gxf6 {[%clk 0:00:48]}  Bd3+ {[%clk 0:00:17]} 26. Kf2 {[%clk 0:00:43]}  Bxc2 {[%clk 0:00:17]} 27. Rxc2 {[%clk 0:00:43]}  Re6 {[%clk 0:00:17]} 28. Rg1+ {[%clk 0:00:40]}  Kf8 {[%clk 0:00:16]} 29. Rc7 {[%clk 0:00:37]}  Rxf6+ {[%clk 0:00:16]} 30. Ke2 {[%clk 0:00:37]}  Re8+ {[%clk 0:00:15]} 31. Kd2 {[%clk 0:00:36]}  Rd6+ {[%clk 0:00:15]} 32. Kc2 {[%clk 0:00:35]}  Rc6+ {[%clk 0:00:15]} 33. Rxc6 {[%clk 0:00:35]}  bxc6 {[%clk 0:00:16]} 34. Rf1 {[%clk 0:00:34]}  Re2+ {[%clk 0:00:15]} 35. Kb3 {[%clk 0:00:34]}  Rh2 {[%clk 0:00:15]} 36. Rf4 {[%clk 0:00:33]}  Kg7 {[%clk 0:00:13]} 37. a4 {[%clk 0:00:32]}  f6 {[%clk 0:00:09]} 38. Kc4 {[%clk 0:00:30]}  Kf7 {[%clk 0:00:09]} 39. Kc5 {[%clk 0:00:29]}  Rc2+ {[%clk 0:00:08]} 40. Kd6 {[%clk 0:00:30]}  c5 {[%clk 0:00:08]} 41. a5 {[%clk 0:00:29]}  c4 {[%clk 0:00:08]} 42. Kc6 {[%clk 0:00:25]}  c3 {[%clk 0:00:07]} 43. Rc4 {[%clk 0:00:24]}  Ra2 {[%clk 0:00:05]} 44. Rc5 {[%clk 0:00:17]}  c2 {[%clk 0:00:05]} 45. Kb7 {[%clk 0:00:17]}  Rxa5 {[%clk 0:00:04]} 46. Rxc2 {[%clk 0:00:16]}  Ra4 {[%clk 0:00:04]} 47. h5 {[%clk 0:00:14]}  Kg7 {[%clk 0:00:03]} 48. Rc6 {[%clk 0:00:11]}  Rf4 {[%clk 0:00:02]} 49. Kxa7 {[%clk 0:00:10]}  Kh6 {[%clk 0:00:02]} 50. Rc7 {[%clk 0:00:10]}  Rf5 {[%clk 0:00:02]} 51. Rf7 {[%clk 0:00:10]}  Kxh5 {[%clk 0:00:01]} 52. Rxh7+ {[%clk 0:00:10]}  Kg4 {[%clk 0:00:02]} 53. Rg7+ {[%clk 0:00:10]}  Kf4 {[%clk 0:00:02]} 54. Rf7 {[%clk 0:00:10]}  Ke5 {[%clk 0:00:01]} 55. Kb6 {[%clk 0:00:10]}  Rf1 {[%clk 0:00:01]} 56. Kc5 {[%clk 0:00:10]}  Rc1+ {[%clk 0:00:01]} 57. Kb4 {[%clk 0:00:10]}  f5 {[%clk 0:00:02]} 58. Kb3 {[%clk 0:00:10]}  Kf4 {[%clk 0:00:02]} 59. Kb2 {[%clk 0:00:09]}  Rc8 {[%clk 0:00:03]} 60. Re7 {[%clk 0:00:08]}  Kg4 {[%clk 0:00:03]} 61. Rg7+ {[%clk 0:00:08]}  Kf3 {[%clk 0:00:03]} 62. Rf7 {[%clk 0:00:08]}  f4 {[%clk 0:00:03]} 63. Rf6 {[%clk 0:00:09]}  Kg3 {[%clk 0:00:04]} 64. Rf7 {[%clk 0:00:07]}  f3 {[%clk 0:00:03]} 65. Rg7+ {[%clk 0:00:08]}  Kf2 {[%clk 0:00:03]} 66. Rf7 {[%clk 0:00:08]}  Kg2 {[%clk 0:00:04]} 67. Rg7+ {[%clk 0:00:08]}  Kf1 {[%clk 0:00:04]} 68. Rf7 {[%clk 0:00:08]}  f2 {[%clk 0:00:05]} 69. Rf6 {[%clk 0:00:09]}  Rc4 {[%clk 0:00:05]} 70. Kb3 {[%clk 0:00:08]}  Rc8 {[%clk 0:00:05]} 71. Kb2 {[%clk 0:00:08]}  Rc5 {[%clk 0:00:05]} 72. Rf8 {[%clk 0:00:06]}  Kg2 {[%clk 0:00:05]} 73. Rg8+ {[%clk 0:00:06]}  Kf3 {[%clk 0:00:05]} 74. Rf8+ {[%clk 0:00:06]}  Kg3 {[%clk 0:00:06]} 75. Rg8+ {[%clk 0:00:07]}  Kf4 {[%clk 0:00:06]} 76. Rf8+ {[%clk 0:00:07]}  Rf5 {[%clk 0:00:06]} 0-1


[Site "https://www.chess.com"]

[Event "Titled Tuesday Blitz December 14 2021"]
[White "Shubin, Kirill"]
[Black "Suvorov, Alexander"]
[WhiteFideId "34119962"]
[BlackFideId "12977063"]
[WhiteElo "2501"]
[BlackElo "2221"]
[Result "1-0"]
[Round "06"]
[TimeControl "180+1"]
[Date "2021.12.14"]
[WhiteClock "0:00:22"]
[BlackClock "0:00:24"]

1. e4 {[%clk 0:03:00]}  c5 {[%clk 0:02:57]} 2. Nf3 {[%clk 0:03:01]}  e6 {[%clk 0:02:56]} 3. g3 {[%clk 0:03:01]}  Nc6 {[%clk 0:02:53]} 4. Bg2 {[%clk 0:03:00]}  Nf6 {[%clk 0:02:48]} 5. Qe2 {[%clk 0:03:00]}  e5 {[%clk 0:02:49]} 6. O-O {[%clk 0:03:00]}  Be7 {[%clk 0:02:49]} 7. Nc3 {[%clk 0:03:00]}  O-O {[%clk 0:02:47]} 8. Nd5 {[%clk 0:02:59]}  Nxd5 {[%clk 0:02:34]} 9. exd5 {[%clk 0:03:00]}  Nd4 {[%clk 0:02:35]} 10. Nxd4 {[%clk 0:02:57]}  exd4 {[%clk 0:02:36]} 11. Re1 {[%clk 0:02:42]}  Bf6 {[%clk 0:02:11]} 12. d6 {[%clk 0:02:41]}  Qb6 {[%clk 0:02:06]} 13. Qc4 {[%clk 0:02:41]}  Qxd6 {[%clk 0:02:04]} 14. d3 {[%clk 0:02:41]}  Qb6 {[%clk 0:01:58]} 15. Bf4 {[%clk 0:02:23]}  d6 {[%clk 0:01:51]} 16. Qd5 {[%clk 0:01:54]}  Be6 {[%clk 0:01:51]} 17. Qxd6 {[%clk 0:01:52]}  Qxd6 {[%clk 0:01:35]} 18. Bxd6 {[%clk 0:01:53]}  Rfd8 {[%clk 0:01:36]} 19. Bxc5 {[%clk 0:01:39]}  Rac8 {[%clk 0:01:32]} 20. Ba3 {[%clk 0:01:23]}  b6 {[%clk 0:01:23]} 21. Re2 {[%clk 0:01:14]}  Rc7 {[%clk 0:01:17]} 22. b3 {[%clk 0:01:13]}  Rdc8 {[%clk 0:01:13]} 23. Rc1 {[%clk 0:01:10]}  Bg4 {[%clk 0:01:11]} 24. Rd2 {[%clk 0:01:06]}  Bf5 {[%clk 0:00:57]} 25. f4 {[%clk 0:00:59]}  h5 {[%clk 0:00:53]} 26. h4 {[%clk 0:00:50]}  g6 {[%clk 0:00:50]} 27. Kf2 {[%clk 0:00:48]}  Kg7 {[%clk 0:00:38]} 28. Bb2 {[%clk 0:00:32]}  Rd8 {[%clk 0:00:34]} 29. a4 {[%clk 0:00:31]}  Re8 {[%clk 0:00:31]} 30. Re1 {[%clk 0:00:30]}  Rec8 {[%clk 0:00:28]} 31. Ree2 {[%clk 0:00:29]}  Bg4 {[%clk 0:00:28]} 32. Bf3 {[%clk 0:00:29]}  Bf5 {[%clk 0:00:27]} 33. Ba3 {[%clk 0:00:28]}  Rd7 {[%clk 0:00:25]} 34. Be4 {[%clk 0:00:27]}  Bg4 {[%clk 0:00:24]} 35. Bf3 {[%clk 0:00:27]}  Bf5 {[%clk 0:00:25]} 36. Bb4 {[%clk 0:00:27]}  a5 {[%clk 0:00:24]} 37. Ba3 {[%clk 0:00:27]}  Rdc7 {[%clk 0:00:24]} 38. Bd6 {[%clk 0:00:26]}  Rd7 {[%clk 0:00:24]} 39. Be5 {[%clk 0:00:26]}  Rdc7 {[%clk 0:00:24]} 40. Bxc7 {[%clk 0:00:24]}  Rxc7 {[%clk 0:00:24]} 41. Re8 {[%clk 0:00:22]} 1-0


[Site "https://www.chess.com"]

[Event "Titled Tuesday Blitz December 14 2021"]
[White "Svane, Frederik"]
[Black "Zubov, Alexander"]
[WhiteFideId "12923044"]
[BlackFideId "14109409"]
[WhiteElo "2459"]
[BlackElo "2685"]
[Result "1-0"]
[Round "06"]
[TimeControl "180+1"]
[Date "2021.12.14"]
[WhiteClock "0:00:07"]
[BlackClock "0:00:04"]

1. e4 {[%clk 0:03:00]}  c5 {[%clk 0:02:57]} 2. Nf3 {[%clk 0:02:59]}  e6 {[%clk 0:02:56]} 3. d4 {[%clk 0:02:59]}  cxd4 {[%clk 0:02:56]} 4. Nxd4 {[%clk 0:03:00]}  a6 {[%clk 0:02:56]} 5. Nc3 {[%clk 0:02:59]}  b5 {[%clk 0:02:56]} 6. Bd3 {[%clk 0:02:59]}  Qb6 {[%clk 0:02:55]} 7. Nf3 {[%clk 0:02:54]}  Qc7 {[%clk 0:02:55]} 8. O-O {[%clk 0:02:53]}  Bb7 {[%clk 0:02:54]} 9. e5 {[%clk 0:02:53]}  f5 {[%clk 0:02:45]} 10. Nh4 {[%clk 0:02:52]}  g6 {[%clk 0:02:40]} 11. Nxf5 {[%clk 0:02:52]}  exf5 {[%clk 0:02:29]} 12. Re1 {[%clk 0:02:52]}  b4 {[%clk 0:02:02]} 13. Ne2 {[%clk 0:02:38]}  Ne7 {[%clk 0:01:53]} 14. Bg5 {[%clk 0:02:24]}  Bg7 {[%clk 0:01:33]} 15. Nf4 {[%clk 0:02:22]}  Nbc6 {[%clk 0:01:23]} 16. Bc4 {[%clk 0:01:47]}  Nxe5 {[%clk 0:00:59]} 17. Bb3 {[%clk 0:01:29]}  Qc5 {[%clk 0:00:32]} 18. c3 {[%clk 0:00:54]}  bxc3 {[%clk 0:00:32]} 19. Rc1 {[%clk 0:00:54]}  N7c6 {[%clk 0:00:25]} 20. Rxc3 {[%clk 0:00:51]}  Qd4 {[%clk 0:00:24]} 21. Rd3 {[%clk 0:00:36]}  Qb4 {[%clk 0:00:24]} 22. Rxd7 {[%clk 0:00:33]}  Qxe1+ {[%clk 0:00:24]} 23. Qxe1 {[%clk 0:00:33]}  Kxd7 {[%clk 0:00:24]} 24. Ne6 {[%clk 0:00:24]}  Nf7 {[%clk 0:00:13]} 25. Nc5+ {[%clk 0:00:17]}  Kc7 {[%clk 0:00:13]} 26. Bxf7 {[%clk 0:00:17]}  Be5 {[%clk 0:00:04]} 27. Ne6+ {[%clk 0:00:13]}  Kb8 {[%clk 0:00:03]} 28. Be3 {[%clk 0:00:10]}  Rc8 {[%clk 0:00:03]} 29. h4 {[%clk 0:00:07]}  a5 {[%clk 0:00:02]} 30. Nc5 {[%clk 0:00:07]}  a4 {[%clk 0:00:02]} 31. Nd7+ {[%clk 0:00:07]}  Kc7 {[%clk 0:00:02]} 32. Nxe5 {[%clk 0:00:07]}  Nxe5 {[%clk 0:00:03]} 33. Bf4 {[%clk 0:00:08]}  Kb6 {[%clk 0:00:03]} 34. Qxe5 {[%clk 0:00:07]}  Bc6 {[%clk 0:00:03]} 35. Qd4+ {[%clk 0:00:07]}  Kb7 {[%clk 0:00:04]} 36. Be3 {[%clk 0:00:07]}  Ra6 {[%clk 0:00:04]} 37. Bc4 {[%clk 0:00:07]}  Rc7 {[%clk 0:00:04]} 38. Bxa6+ {[%clk 0:00:07]} 1-0


[Site "https://www.chess.com"]